bitfinex-derivatives/quotes_ETHF0:USTF0_20241013
["timestamp","ask_amount","ask_price","bid_price","bid_amount"]
[1728825305345,2.818471,2468.9,2468.8,0.20096223]
[1728825305546,2.818471,2468.9,2468.8,0.32761988]
[1728825305754,2.818471,2468.9,2468.8,0.20096223]
[1728825306450,2.818471,2468.9,2468.8,0.32762147]
[1728825308238,2.818471,2468.9,2468.8,0.6493101]
[1728825308650,2.818471,2468.9,2468.8,0.64936288]
[1728825309845,2.818471,2468.9,2468.8,1.05447288]
[1728825310245,2.818471,2468.9,2468.8,1.56110452]
[1728825310554,3.02112358,2468.9,2468.8,1.56110452]
[1728825311350,3.02112363,2468.9,2468.8,1.56110452]
[1728825312445,1.43054263,2468.9,2468.8,1.56110452]
[1728825312954,1.43054263,2468.9,2468.8,1.05453538]
[1728825313144,1.43054263,2468.9,2468.8,1.56116934]
[1728825315051,1.43054263,2468.9,2468.8,1.5611695]
[1728825315453,3.14847938,2468.9,2468.8,1.5611695]
[1728825316246,3.14848021,2468.9,2468.8,0.92814763]
[1728825316446,3.14848021,2468.9,2468.8,2.90073554]
[1728825316846,3.14848021,2468.9,2468.8,3.40736921]
[1728825317552,3.14848021,2468.9,2468.8,1.45721873]
[1728825317746,3.14848021,2468.9,2468.8,1.05480604]
[1728825317946,3.14848021,2468.9,2468.8,1.56143611]
[1728825318147,3.55357021,2468.9,2468.8,1.56143611]
[1728825318348,3.55357021,2468.9,2468.8,1.56143974]
[1728825319240,3.55357021,2468.9,2468.8,1.9639163]
[1728825319842,3.55357021,2468.9,2468.8,1.03840211]
[1728825320042,3.55357021,2468.9,2468.8,1.96399569]
[1728825320651,3.55357021,2468.9,2468.8,3.0235125]
[1728825320851,3.5535687,2468.9,2468.8,3.0235125]
[1728825321447,3.5535687,2468.9,2468.8,2.6184025]
[1728825321647,6.31624189,2468.9,2468.8,1.15640616]
[1728825321849,3.66121525,2468.9,2468.8,0.32783743]
[1728825322062,3.66121525,2468.9,2468.8,0.20117902]
[1728825323552,0.40511,2468.8,2468.7,0.40513]
[1728825323752,3.06272369,2468.8,2468.7,0.92851939]
[1728825324059,5.49604894,2468.8,2468.7,1.05519106]
[1728825324250,5.49604894,2468.8,2468.7,0.73308749]
[1728825324856,5.49604894,2468.8,2468.7,0.65005367]
[1728825325155,5.49604894,2468.8,2468.7,0.32795749]
[1728825325454,5.49604894,2468.8,2468.7,0.73308749]
[1728825326658,5.49604894,2468.8,2468.7,0.32795749]
[1728825326957,5.49604894,2468.8,2468.7,0.73308749]
[1728825327351,5.49604894,2468.8,2468.7,0.60638061]
[1728825327547,5.49604894,2468.8,2468.7,0.73305579]
[1728825327951,5.49604894,2468.8,2468.7,0.60638061]
[1728825330061,5.49521387,2468.8,2468.7,0.60638061]
[1728825330657,5.49521387,2468.8,2468.7,0.20125061]
[1728825331756,1.01289,2468.6,2468.3,0.40519]
[1728825332058,8.71816457,2468.5,2468.4,0.20121676]
[1728825332261,8.71816457,2468.5,2468.1,1.45821681]
[1728825332262,6.06165278,2468.5,2468.2,0.4052]
[1728825332564,2.52975963,2468.3,2468.2,0.4052]
[1728825332761,2.73243787,2468.3,2468.2,0.60637805]
[1728825333065,3.15143787,2468.3,2468.2,0.60637805]
[1728825333261,3.15143787,2468.3,2468.2,0.20117805]
[1728825333458,7.20263787,2468.3,2468.2,0.20117805]
[1728825333762,0.40524,2468.0,2467.9,0.40526]
[1728825333957,0.40526,2467.9,2467.8,0.40527]
[1728825334153,3.24174709,2467.9,2467.8,1.56187934]
[1728825334354,2.30498876,2467.9,2467.8,0.73314111]
[1728825334663,2.30498876,2467.9,2467.8,0.73314622]
[1728825334967,3.24174709,2467.9,2467.8,0.20108335]
[1728825335162,3.4444916,2467.9,2467.7,0.40529]
[1728825335350,3.4444916,2467.9,2467.6,0.8136]
[1728825335351,1.06110215,2467.8,2467.6,0.8136]
[1728825335552,1.46638215,2467.8,2467.7,0.20099779]
[1728825336156,1.46638215,2467.8,2467.6,0.8136]
[1728825336362,0.40528,2467.8,2467.6,0.8136]
[1728825336961,1.06110215,2467.8,2467.4,0.52713329]
[1728825337261,0.4053,2467.7,2467.5,0.40532]
[1728825337864,4.26890215,2467.8,2467.4,0.3821]
[1728825338062,4.67418215,2467.8,2467.4,0.3821]
[1728825338361,4.67419215,2467.8,2467.6,0.4053]
[1728825339058,4.67419215,2467.8,2467.5,0.40531]
[1728825339256,3.61309,2467.8,2467.5,0.40531]
[1728825340156,3.61309,2467.8,2467.4,0.3821]
[1728825340356,3.61309,2467.8,2467.6,0.4053]
[1728825340762,3.61309,2467.8,2467.7,0.4151]
[1728825342959,3.2078,2467.8,2467.7,0.82039]
[1728825343160,1.2434,2467.9,2467.8,0.40528]
[1728825343564,0.8331,2467.9,2467.8,0.81518]
[1728825343874,1.06110215,2468.1,2467.8,0.81518]
[1728825343875,1.46100215,2468.1,2468.0,0.40524]
[1728825344161,3.6089,2468.2,2468.1,0.40523]
[1728825344556,4.01411,2468.2,2468.1,0.40523]
[1728825347764,0.80631,2468.2,2468.1,0.40523]
[1728825347959,4.01411,2468.2,2468.1,0.40523]
[1728825349270,3.6089,2468.2,2468.1,0.40523]
[1728825350278,3.2078,2468.2,2468.1,0.40523]
[1728825354675,1.2121,2468.3,2468.2,0.40521]
[1728825354872,4.4199,2468.3,2468.2,0.40521]
[1728825355476,3.2078,2468.3,2468.2,0.40521]
[1728825359073,1.06110215,2468.7,2468.6,0.40514]
[1728825359372,4.67401215,2468.8,2468.7,0.40513]
[1728825359575,3.2078,2468.8,2468.7,0.40513]
[1728825359775,3.61291,2468.8,2468.4,0.388]
[1728825359967,0.40513,2468.7,2468.4,0.388]
[1728825360172,3.61293,2468.8,2468.6,0.40513]
[1728825360368,0.40513,2468.7,2468.6,0.40513]
[1728825367286,4.67402215,2468.8,2468.7,0.40513]
[1728825367484,4.26890215,2468.8,2468.7,0.40513]
[1728825367978,4.67401215,2468.8,2468.7,0.40513]
[1728825369976,4.26890215,2468.8,2468.7,0.40513]
[1728825371187,3.2078,2468.8,2468.7,0.40513]
[1728825371577,1.59308709,2469.0,2468.7,4.0504]
[1728825371578,1.06110215,2469.0,2468.7,4.0504]
[1728825371885,1.06110215,2469.1,2469.0,0.40508]
[1728825372090,6.00598709,2469.2,2469.1,0.40506]
[1728825372091,5.87905215,2469.2,2469.1,0.40506]
[1728825373589,5.47400215,2469.2,2469.1,0.40506]
[1728825373782,4.4129,2469.2,2469.1,0.40506]
[1728825376491,1.2051,2469.2,2469.1,0.40506]
[1728825376692,4.4129,2469.2,2469.1,0.40506]
[1728825378082,4.81795,2469.2,2469.1,0.40506]
[1728825378486,4.4129,2469.2,2469.1,0.40506]
[1728825378997,0.4099,2469.2,2469.1,0.40506]
[1728825380492,0.4099,2469.2,2469.1,0.92576231]
[1728825385292,0.4099,2469.2,2469.1,0.40506]
[1728825389594,0.3909,2469.4,2469.3,0.40503]
[1728825389801,3.6234,2469.5,2468.9,6.02043071]
[1728825389802,4.0452,2469.5,2469.4,0.40501]
[1728825389996,3.6296,2469.5,2469.4,0.40501]
[1728825392095,4.0346,2469.5,2469.4,0.40501]
[1728825393303,3.6296,2469.5,2469.4,0.40501]
[1728825393898,4.0346,2469.5,2469.4,0.40501]
[1728825394300,3.6296,2469.5,2469.4,0.40501]
[1728825397199,4.0346,2469.5,2469.4,0.40501]
[1728825400008,3.6296,2469.5,2469.4,0.40501]
[1728825400408,4.0346,2469.5,2469.4,0.40501]
[1728825402404,7.6792,2469.5,2469.2,0.867]
[1728825402605,7.6792,2469.5,2468.2,3.37107999]
[1728825402606,0.4189,2469.4,2469.1,0.867]
[1728825402910,0.4189,2469.4,2469.2,0.40503]
[1728825402911,0.81264,2469.3,2469.2,0.40503]
[1728825403500,0.4076,2469.3,2469.1,0.867]
[1728825403700,0.40505,2469.2,2469.1,1.27205]
[1728825404211,0.81264,2469.3,2469.1,1.06771431]
[1728825404399,0.81264,2469.3,2469.1,0.867]
[1728825404600,0.81264,2469.3,2469.2,0.40505]
[1728825407101,0.4076,2469.3,2469.2,0.40505]
[1728825407300,0.4076,2469.3,2469.2,0.60580057]
[1728825407600,0.4076,2469.3,2469.2,1.01330373]
[1728825408209,0.81263,2469.3,2469.2,1.01330373]
[1728825408402,0.4076,2469.3,2469.2,1.01330373]
[1728825408804,1.48000215,2469.4,2469.2,1.01330373]
[1728825408805,1.48000215,2469.4,2469.2,0.60825373]
[1728825409007,5.22268709,2469.5,2469.4,0.40501]
[1728825409008,3.2078,2469.5,2469.4,0.40501]
[1728825409210,1.46170215,2469.7,2469.6,0.40498]
[1728825409400,0.3831,2469.8,2469.7,0.40496]
[1728825409711,0.3831,2469.8,2469.7,0.60571373]
[1728825410005,0.3831,2469.8,2469.7,0.99521373]
[1728825411005,0.3831,2469.8,2469.7,0.79446]
[1728825411203,0.3831,2469.8,2469.7,0.99507928]
[1728825411608,0.3831,2469.8,2469.7,0.99510298]
[1728825414708,0.3831,2469.8,2469.7,0.79446]
[1728825415011,0.3831,2469.8,2469.7,0.99498332]
[1728825418221,0.3922,2469.9,2469.8,0.40495]
[1728825418518,0.3922,2469.9,2469.8,0.60555283]
[1728825421919,0.3922,2469.9,2469.8,0.40495]
[1728825422111,0.3922,2469.9,2469.8,0.60479381]
[1728825428325,0.3922,2469.9,2469.8,0.40495]
[1728825428518,0.3922,2469.9,2469.8,0.60400506]
[1728825430727,0.3922,2469.9,2469.8,1.47000506]
[1728825432024,0.3922,2469.9,2469.8,1.47000173]
[1728825434421,0.3922,2469.9,2469.8,1.59659992]
[1728825434623,0.3922,2469.9,2469.8,1.47000173]
[1728825435630,0.3922,2469.9,2469.8,1.27095]
[1728825435830,0.3922,2469.9,2469.8,1.46978748]
[1728825436020,1.87390215,2470.1,2470.0,0.40491]
[1728825436227,2.28100215,2470.1,2470.0,0.40491]
[1728825436627,2.28100215,2470.1,2470.0,0.80861]
[1728825437623,2.68590215,2470.1,2470.0,0.80861]
[1728825438239,2.68590215,2470.1,2470.0,0.40491]
[1728825438531,0.40492,2470.0,2469.9,0.40492]
[1728825438933,0.40492,2470.0,2469.9,1.27092]
[1728825439530,0.40492,2470.0,2469.9,1.46973732]
[1728825440425,0.40492,2470.0,2469.9,0.19881732]
[1728825440626,1.46602215,2470.0,2469.9,0.19881732]
[1728825440839,0.40493,2469.9,2469.8,0.866]
[1728825441027,1.06110215,2470.0,2469.7,0.40495]
[1728825441223,1.06110215,2470.0,2469.6,1.87381681]
[1728825441224,0.40497,2469.7,2469.6,0.40498]
[1728825441626,0.822,2469.7,2469.6,0.40498]
[1728825442841,0.822,2469.7,2469.6,0.73062233]
[1728825443336,0.4145,2469.7,2469.6,1.55554219]
[1728825444438,1.97668709,2470.0,2469.6,6.258879]
[1728825444439,3.03778924,2470.0,2469.6,6.258879]
[1728825444627,1.44470215,2470.0,2469.9,0.40493]
[1728825444939,0.3836,2470.0,2469.9,0.60396053]
[1728825447142,1.44470215,2470.0,2469.9,1.46996053]
[1728825448927,1.44470215,2470.0,2469.9,0.60396053]
[1728825449440,1.44470215,2470.0,2469.9,0.73055935]
[1728825449741,1.44470215,2470.0,2469.9,0.72999982]
[1728825450331,1.44470215,2470.0,2469.9,1.55406128]
[1728825451339,1.44470215,2470.0,2469.9,1.0379174]
[1728825451545,1.44470215,2470.0,2469.9,1.55423367]
[1728825452138,1.97668709,2470.0,2469.9,1.55423367]
[1728825452534,2.38159709,2470.0,2469.9,1.1596403]
[1728825452741,3.1150985,2470.0,2469.9,0.33550003]
[1728825453241,3.1150985,2470.0,2469.9,0.33551085]
[1728825453441,3.1150985,2470.0,2469.9,0.33551051]
[1728825453643,3.1150985,2470.0,2469.9,0.65356849]
[1728825453834,3.1150985,2470.0,2469.9,0.33551051]
[1728825454041,3.1150985,2470.0,2469.9,0.20890128]
[1728825454241,5.90660916,2470.0,2469.9,1.16022895]
[1728825455244,9.95540916,2470.0,2469.9,1.16022895]
[1728825455443,7.29969713,2470.0,2469.9,0.20890128]
[1728825455647,7.29969713,2470.0,2469.5,1.05951681]
[1728825455648,0.40498,2469.6,2469.5,1.05951681]
[1728825455855,6.26968344,2469.6,2469.5,0.95152662]
[1728825456062,8.73285222,2469.6,2469.5,0.95152662]
[1728825456263,3.81533724,2469.6,2469.5,0.95152662]
[1728825456760,4.23033724,2469.6,2469.5,0.95152662]
[1728825457055,9.14449812,2469.6,2469.5,0.12662446]
[1728825457261,8.27993724,2469.6,2469.5,0.12662446]
[1728825457463,0.40502,2469.4,2469.3,0.40503]
[1728825457759,0.60763368,2469.4,2469.3,1.35485215]
[1728825457946,1.99817533,2469.4,2469.3,2.09694728]
[1728825458151,2.20078901,2469.4,2469.3,0.94977084]
[1728825458360,1.99817533,2469.4,2469.3,0.94977084]
[1728825458766,2.39837533,2469.4,2469.3,0.94977084]
[1728825460162,2.39837533,2469.4,2469.3,0.44402556]
[1728825460467,2.39837533,2469.4,2469.3,0.1266334]
[1728825460759,2.39837533,2469.4,2469.3,0.44374472]
[1728825461265,1.86633611,2469.4,2469.3,0.44372717]
[1728825461559,1.86633611,2469.4,2469.3,0.12663156]
[1728825462255,1.86633611,2469.4,2469.2,0.40504]
[1728825462562,0.42,2469.3,2469.2,0.40504]
[1728825462756,0.42,2469.3,2469.2,1.35371674]
[1728825463958,0.82503,2469.3,2469.2,0.94867674]
[1728825464164,0.82503,2469.3,2469.2,0.44360597]
[1728825464464,0.42,2469.3,2469.2,0.84865597]
[1728825464965,0.42,2469.3,2469.2,1.35359224]
[1728825465166,0.42,2469.3,2469.2,0.84865597]
[1728825465464,0.82503,2469.3,2469.2,0.12663178]
[1728825465652,0.82503,2469.3,2469.1,1.88396681]
[1728825465653,4.68891611,2469.3,2469.1,0.4194]
[1728825465858,0.80125,2469.2,2469.1,0.4194]
[1728825466054,1.86236611,2469.2,2469.1,0.4194]
[1728825466262,0.80125,2469.2,2469.1,0.4194]
[1728825467661,0.3962,2469.2,2469.1,0.61740928]
[1728825467861,0.3962,2469.2,2469.1,1.02246928]
[1728825468062,0.3962,2469.2,2469.1,0.61740928]
[1728825468270,0.80125,2469.2,2469.1,0.61740928]
[1728825468454,0.3962,2469.2,2469.1,0.82446]
[1728825468654,4.68891611,2469.3,2469.2,0.40505]
[1728825468855,3.6278,2469.3,2469.2,0.40505]
[1728825470163,3.2078,2469.3,2469.2,0.40505]
[1728825470360,3.2078,2469.3,2469.2,0.80945]
[1728825470663,0.4002,2469.4,2469.3,0.40503]
[1728825470969,1.06111611,2469.4,2469.3,0.40503]
[1728825471153,2.80785533,2469.5,2469.3,0.40503]
[1728825471154,2.68511611,2469.5,2469.3,0.40503]
[1728825471561,2.68511611,2469.5,2469.4,0.4031]
[1728825471761,2.28011611,2469.5,2469.4,0.80811]
[1728825472663,2.68511611,2469.5,2469.4,0.80811]
[1728825472966,2.28011611,2469.5,2469.4,0.80811]
[1728825473159,2.68511611,2469.5,2469.4,0.80811]
[1728825473360,1.219,2469.5,2469.4,0.80811]
[1728825473765,2.28011611,2469.5,2469.4,0.80811]
[1728825473959,1.219,2469.5,2469.4,0.80811]
[1728825474164,1.06111611,2469.5,2469.4,0.80811]
[1728825474364,1.59315533,2469.6,2469.4,0.80811]
[1728825474365,1.46609611,2469.6,2469.5,0.405]
[1728825474567,1.06111611,2469.6,2469.5,0.405]
[1728825476865,1.46609611,2469.6,2469.5,0.405]
[1728825477969,1.06111611,2469.6,2469.5,0.405]
[1728825478365,1.46609611,2469.6,2469.5,0.405]
[1728825478565,1.06111611,2469.6,2469.5,0.405]
[1728825478962,2.26317611,2469.7,2469.6,0.40498]
[1728825480274,0.40496,2469.7,2469.6,0.40498]
[1728825482073,0.40496,2469.7,2469.4,0.4031]
[1728825482074,0.40496,2469.7,2469.5,0.40498]
[1728825482772,2.28281611,2469.8,2469.4,0.4031]
[1728825482969,1.62665,2469.8,2469.6,0.40497]
[1728825483276,0.4121,2469.8,2469.7,0.40496]
[1728825483672,1.06111611,2469.9,2469.8,0.40495]
[1728825483874,1.46604611,2469.9,2469.8,0.40495]
[1728825484071,1.06111611,2469.9,2469.8,0.40495]
[1728825484277,4.66891836,2470.0,2469.9,0.40493]
[1728825484471,4.26761836,2470.0,2469.9,0.40493]
[1728825484670,3.2078,2470.0,2469.9,0.60272687]
[1728825485177,4.26761836,2470.0,2469.9,0.40493]
[1728825485570,3.2078,2470.0,2469.9,0.40493]
[1728825485763,3.2078,2470.0,2469.9,0.60272686]
[1728825486671,4.26766583,2470.0,2469.9,0.60272686]
[1728825489275,4.26766583,2470.0,2469.9,0.40493]
[1728825489475,4.26766583,2470.0,2469.9,0.60274517]
[1728825489770,4.68786583,2470.0,2469.9,0.60274514]
[1728825492683,4.68786583,2470.0,2469.9,0.72934839]
[1728825493079,4.68786583,2470.0,2469.9,0.72934872]
[1728825494485,4.68786583,2470.0,2469.9,0.53153358]
[1728825494787,4.26766583,2470.0,2469.9,0.7293583]
[1728825495286,4.26766583,2470.0,2469.9,1.5953583]
[1728825495686,3.2078,2470.0,2469.9,1.27093]
[1728825499779,3.2078,2470.0,2469.9,1.46878666]
[1728825499985,3.2078,2470.0,2469.9,1.46878432]
[1728825501388,3.2078,2470.0,2469.9,1.27093]
[1728825502486,3.2078,2470.0,2469.9,1.46875258]
[1728825504188,3.2078,2470.0,2469.9,1.27093]
[1728825504696,3.2078,2470.0,2469.9,2.0008565]
[1728825508900,3.2078,2470.0,2469.9,2.12744957]
[1728825509103,3.2078,2470.0,2469.9,2.12741238]
[1728825509402,3.2078,2470.0,2469.9,1.59513522]
[1728825511600,0.80619,2470.2,2470.1,0.4049]
[1728825511901,4.01399,2470.2,2470.1,0.4049]
[1728825514296,4.01399,2470.2,2470.1,0.60259892]
[1728825515202,5.07385583,2470.2,2470.1,0.60259892]
[1728825515597,1.86605583,2470.2,2470.1,0.60259892]
[1728825515902,5.07385583,2470.2,2470.1,0.60259892]
[1728825516103,1.86605583,2470.2,2470.1,0.60259892]
[1728825516406,5.07385583,2470.2,2470.1,0.60259892]
[1728825517300,4.01399,2470.2,2470.1,0.60276332]
[1728825518200,5.60714533,2470.2,2470.1,0.60276332]
[1728825520699,4.66995549,2470.2,2470.1,0.72935633]
[1728825520900,4.66995549,2470.2,2470.1,1.04608883]
[1728825521197,1.46215549,2470.2,2470.1,1.54729261]
[1728825523103,1.46215549,2470.2,2470.1,2.60680942]
[1728825523305,1.46215549,2470.2,2470.1,1.54729261]
[1728825523498,1.46215549,2470.2,2470.1,2.60680942]
[1728825524405,1.46215549,2470.2,2470.1,2.10585306]
[1728825524707,1.46215549,2470.2,2470.1,2.10585239]
[1728825525009,1.46215549,2470.2,2470.1,3.10864112]
[1728825526011,1.86703549,2470.2,2470.1,3.10864112]
[1728825526703,1.46215549,2470.2,2470.1,3.10864112]
[1728825527605,0.4013,2470.2,2470.1,3.10864112]
[1728825527805,1.46284943,2470.2,2470.1,2.98205425]
[1728825528004,1.46284943,2470.2,2470.1,3.10864191]
[1728825528200,1.46284943,2470.2,2470.1,2.46720554]
[1728825528508,1.46284943,2470.2,2470.1,2.60744798]
[1728825528709,1.46284943,2470.2,2470.1,3.10903194]
[1728825529309,1.99445533,2470.2,2470.1,3.10903194]
[1728825530808,2.39933533,2470.2,2470.1,3.10903194]
[1728825531908,1.99445533,2470.2,2470.1,2.59398582]
[1728825532114,1.99445533,2470.2,2470.1,2.98257435]
[1728825532313,1.99445533,2470.2,2470.1,3.10922126]
[1728825532707,1.99445533,2470.2,2470.1,2.60782482]
[1728825534217,1.59315533,2470.2,2470.1,2.60782482]
[1728825534519,2.41355533,2470.3,2470.1,2.20292482]
[1728825534709,2.41355533,2470.3,2470.2,1.14336449]
[1728825535013,2.61608912,2470.3,2470.2,1.54824449]
[1728825536117,2.61608675,2470.3,2470.2,1.54824449]
[1728825536309,2.61608675,2470.3,2470.2,2.6077613]
[1728825536510,2.61608675,2470.3,2470.2,1.54824449]
[1728825539021,1.02293142,2470.3,2470.2,1.54824449]
[1728825540115,2.61559424,2470.3,2470.2,2.6077613]
[1728825540520,2.41306282,2470.3,2470.2,2.6077613]
[1728825540822,2.61559253,2470.3,2470.2,2.6077613]
[1728825542130,2.61559253,2470.3,2470.2,1.97954644]
[1728825542329,2.61559253,2470.3,2470.2,2.60779791]
[1728825544226,2.61559271,2470.3,2470.2,2.60779791]
[1728825545614,1.02292989,2470.3,2470.2,2.60779791]
[1728825545819,1.02292989,2470.3,2470.2,2.60790604]
[1728825546016,1.02292989,2470.3,2470.2,2.48132443]
[1728825546222,1.02292989,2470.3,2470.2,2.6079179]
[1728825546223,2.61581114,2470.3,2470.2,2.6079179]
[1728825546422,1.02292989,2470.3,2470.2,2.6079179]
[1728825546822,0.8204,2470.3,2470.2,2.6079179]
[1728825547023,2.61587855,2470.3,2470.2,2.6079179]
[1728825547423,1.02293055,2470.3,2470.2,2.6079179]
[1728825549030,1.02293357,2470.3,2470.2,2.6079179]
[1728825552632,3.14714241,2470.3,2470.2,2.6079179]
[1728825553131,3.14714241,2470.3,2470.2,1.97966879]
[1728825553321,3.14714241,2470.3,2470.2,2.1062522]
[1728825553523,3.14714002,2470.3,2470.2,2.60812902]
[1728825553825,1.02293118,2470.3,2470.2,2.60812902]
[1728825554431,3.14714002,2470.3,2470.2,2.60812902]
[1728825555233,1.02293118,2470.3,2470.2,3.13487824]
[1728825556832,2.61665116,2470.3,2470.2,2.49302285]
[1728825557136,2.61665116,2470.3,2470.2,2.61960206]
[1728825557332,2.61665116,2470.3,2470.2,3.1348806]
[1728825557837,1.02293118,2470.3,2470.2,3.13490167]
[1728825558333,1.02292802,2470.3,2470.2,3.13490167]
[1728825558533,2.6166687,2470.3,2470.2,3.13490167]
[1728825558734,2.6166687,2470.3,2470.2,3.13490387]
[1728825559231,2.6166687,2470.3,2470.2,3.1349025]
[1728825559639,1.02292802,2470.3,2470.2,3.1349025]
[1728825560437,1.02292802,2470.3,2470.2,3.9999025]
[1728825560640,1.02292802,2470.3,2470.2,3.3714551]
[1728825560834,1.02292802,2470.3,2470.2,3.99995315]
[1728825562837,1.02292802,2470.3,2470.2,2.85614603]
[1728825563037,1.02293049,2470.3,2470.2,2.85614603]
[1728825563435,1.02293049,2470.3,2470.2,3.35788168]
[1728825564131,1.02293049,2470.3,2470.2,2.85614603]
[1728825564438,1.02293049,2470.3,2470.2,3.48449924]
[1728825565440,1.02293049,2470.3,2470.2,3.49786636]
[1728825566034,1.02293049,2470.3,2470.2,3.99967415]
[1728825567742,1.02293015,2470.3,2470.2,3.99967415]
[1728825567940,2.61712375,2470.3,2470.2,2.41340812]
[1728825568441,2.61712375,2470.3,2470.2,1.54840812]
[1728825570338,2.61712375,2470.3,2470.2,1.0332677]
[1728825570542,2.61712375,2470.3,2470.2,2.04980493]
[1728825570837,2.61712375,2470.3,2470.2,2.04960471]
[1728825571038,2.61712375,2470.3,2470.2,3.63858632]
[1728825571341,2.61712375,2470.3,2470.2,3.13693206]
[1728825572340,1.42779015,2470.3,2470.2,2.20241179]
[1728825572541,1.22526,2470.3,2470.2,2.20233052]
[1728825572733,1.42779015,2470.3,2470.2,2.20233052]
[1728825573645,3.35066014,2470.3,2470.2,2.20233052]
[1728825573838,3.55319029,2470.3,2470.2,2.20233052]
[1728825575151,7.60119029,2470.3,2470.2,2.20233052]
[1728825576947,3.55319029,2470.3,2470.2,2.20233052]
[1728825577248,3.55319858,2470.3,2470.2,2.20233052]
[1728825577856,3.55319858,2470.3,2470.2,1.56089391]
[1728825578150,3.55319858,2470.3,2470.2,2.60704675]
[1728825578847,3.55319858,2470.3,2470.2,2.60706635]
[1728825579253,3.14833858,2470.3,2470.2,2.60706635]
[1728825581656,3.14833858,2470.3,2470.2,2.60705383]
[1728825581958,3.14833534,2470.3,2470.2,2.60706516]
[1728825585259,3.14833534,2470.3,2470.2,2.48048066]
[1728825585449,3.14833534,2470.3,2470.2,1.9656772]
[1728825585760,3.14833534,2470.3,2470.2,2.6070426]
[1728825586552,3.14833251,2470.3,2470.2,2.6070426]
[1728825587553,1.7963998,2470.3,2470.2,3.13639074]
[1728825587757,0.20253237,2470.3,2470.2,3.13639074]
[1728825587956,1.59386591,2470.3,2470.2,3.13639074]
[1728825588153,1.79639828,2470.3,2470.2,3.13639074]
[1728825588558,0.20253237,2470.3,2470.2,3.13639074]
[1728825590557,1.79638196,2470.3,2470.2,3.13639074]
[1728825590755,0.20253237,2470.3,2470.2,4.00039074]
[1728825590948,1.5938545,2470.3,2470.2,4.00039074]
[1728825591155,1.5938545,2470.3,2470.2,2.41175278]
[1728825592763,1.5938545,2470.3,2470.2,1.26888]
[1728825592958,1.5938545,2470.3,2470.2,1.91013083]
[1728825593153,1.5938545,2470.3,2470.2,3.48506429]
[1728825593358,1.5938545,2470.3,2470.2,3.99972835]
[1728825594165,1.5938545,2470.3,2470.2,2.41147641]
[1728825594964,1.5938545,2470.3,2470.2,3.99960063]
[1728825595270,1.5938545,2470.3,2470.2,3.99955886]
[1728825595465,1.06242,2470.3,2470.2,2.41143464]
[1728825596367,1.06242,2470.3,2470.2,1.77019411]
[1728825596561,1.06242,2470.3,2470.2,2.41132744]
[1728825599869,1.06242,2470.3,2470.2,3.99903801]
[1728825600070,1.06242,2470.3,2470.2,2.41132744]
[1728825600272,1.06242,2470.3,2470.2,1.26888]
[1728825600474,1.06242,2470.3,2470.2,3.99882005]
[1728825600664,1.06242,2470.3,2470.2,2.41113599]
[1728825601165,1.06242,2470.3,2470.2,3.99880807]
[1728825601360,2.3994545,2470.3,2470.2,3.99880807]
[1728825602973,2.3994545,2470.3,2470.2,3.35773644]
[1728825603273,2.3994545,2470.3,2470.2,3.99874093]
[1728825603572,2.3994545,2470.3,2470.2,3.99877762]
[1728825603768,2.3994545,2470.3,2470.2,3.49759114]
[1728825603968,2.3994545,2470.3,2470.2,3.99876437]
[1728825605568,2.60198184,2470.3,2470.2,3.99876437]
[1728825605766,2.60198005,2470.3,2470.2,3.99876437]
[1728825605970,2.3994545,2470.3,2470.2,3.99876437]
[1728825606369,2.60198349,2470.3,2470.2,3.99876437]
[1728825606574,2.3994545,2470.3,2470.2,3.99876437]
[1728825606971,2.3994545,2470.3,2470.2,3.87211796]
[1728825607272,2.3994545,2470.3,2470.2,3.68209327]
[1728825607473,2.3994545,2470.3,2470.2,3.99866128]
[1728825608178,2.60198354,2470.3,2470.2,3.99866128]
[1728825608571,2.60198255,2470.3,2470.2,3.99866128]
[1728825610671,2.60198255,2470.3,2470.2,3.46951373]
[1728825610872,2.60198255,2470.3,2470.2,3.46951653]
[1728825611273,1.00812805,2470.3,2470.2,3.46951653]
[1728825611465,2.60156646,2470.3,2470.2,3.46951653]
[1728825611669,2.60156646,2470.3,2470.2,2.60551653]
[1728825612776,2.39903841,2470.3,2470.2,3.13466408]
[1728825612979,3.00642526,2470.3,2470.2,2.72978408]
[1728825613374,3.00642689,2470.3,2470.2,3.13466408]
[1728825614273,2.60156684,2470.3,2470.2,3.13466408]
[1728825614479,3.00642684,2470.3,2470.2,1.546992]
[1728825615577,3.00642684,2470.3,2470.2,3.13466408]
[1728825615780,3.00642684,2470.3,2470.2,1.142112]
[1728825616081,3.53838857,2470.3,2470.2,1.14201552]
[1728825617979,3.53840053,2470.3,2470.2,1.14201552]
[1728825618584,3.53840053,2470.3,2470.2,0.62762821]
[1728825618880,3.53840053,2470.3,2470.2,1.14166868]
[1728825620181,3.13354053,2470.3,2470.2,1.14166868]
[1728825620382,3.53840053,2470.3,2470.2,1.54654868]
[1728825620583,3.13354053,2470.3,2470.2,1.54654868]
[1728825622385,3.13354053,2470.3,2470.2,1.54637735]
[1728825622580,2.93100014,2470.3,2470.2,1.54637735]
[1728825622784,3.13353787,2470.3,2470.2,1.54637735]
[1728825623278,0.20253773,2470.3,2470.2,2.60451277]
[1728825623782,1.59341146,2470.3,2470.2,2.60451277]
[1728825623982,0.20253773,2470.3,2470.2,2.60451277]
[1728825625084,0.20253773,2470.3,2470.2,2.19963277]
[1728825625280,0.20253773,2470.3,2470.2,2.60451277]
[1728825625985,0.20253773,2470.3,2470.2,2.10347193]
[1728825626287,0.20253773,2470.3,2470.2,2.60412283]
[1728825626685,0.20253773,2470.3,2470.2,2.47753745]
[1728825626883,0.20253773,2470.3,2470.2,2.60412277]
[1728825629584,0.20253773,2470.3,2470.2,1.46301542]
[1728825629881,0.20253773,2470.3,2470.2,2.60425061]
[1728825632078,0.2025365,2470.3,2470.2,2.19937061]
[1728825632279,0.2025365,2470.3,2470.2,2.60425061]
[1728825632981,1.79617732,2470.3,2470.2,2.60425061]
[1728825633384,1.79617732,2470.3,2470.2,0.40488]
[1728825633583,1.79617732,2470.3,2470.2,1.545982]
[1728825635282,1.79617732,2470.3,2470.2,3.13365408]
[1728825635283,1.59364082,2470.3,2470.2,3.13365408]
[1728825637092,1.59364082,2470.3,2470.2,2.49317185]
[1728825637295,1.59364082,2470.3,2470.2,3.13355504]
[1728825637493,1.59364082,2470.3,2470.2,2.30878087]
[1728825637688,1.59364082,2470.3,2470.2,3.13354986]
[1728825637896,1.59364082,2470.3,2470.2,3.63413228]
[1728825638902,2.40824082,2470.3,2470.2,3.63413228]